bitfinex-derivatives/quotes_BTCF0:USTF0_20241210
["timestamp","ask_amount","ask_price","bid_price","bid_amount"]
[1733820786600,0.051373,97445.0,97443.0,0.051294]
[1733820786999,0.051373,97445.0,97444.0,4.347e-05]
[1733820787606,8e-05,97445.0,97444.0,4.347e-05]
[1733820787813,8e-05,97445.0,97444.0,0.00104347]
[1733820788201,8e-05,97445.0,97444.0,0.00204347]
[1733820788606,8e-05,97445.0,97444.0,0.4077332]
[1733820793009,8e-05,97445.0,97444.0,0.36284347]
[1733820794109,8e-05,97445.0,97444.0,0.00204347]
[1733820797612,8e-05,97445.0,97444.0,0.04693098]
[1733820802115,8e-05,97445.0,97444.0,0.0574485]
[1733820803022,8e-05,97445.0,97444.0,0.04693098]
[1733820806516,8e-05,97445.0,97444.0,0.09822398]
[1733820810025,8e-05,97445.0,97444.0,0.04693098]
[1733820810320,0.051373,97445.0,97444.0,0.04693098]
[1733820810520,0.14353349,97445.0,97444.0,0.04693098]
[1733820811112,0.051373,97445.0,97444.0,0.04693098]
[1733820811517,0.12311507,97445.0,97444.0,0.09822398]
[1733820811823,8e-05,97445.0,97444.0,0.09822398]
[1733820814717,8e-05,97445.0,97444.0,0.34252709]
[1733820815124,8e-05,97445.0,97444.0,0.05333647]
[1733820815815,8e-05,97445.0,97444.0,0.09822305]
[1733820823621,8e-05,97445.0,97444.0,0.45902305]
[1733820824224,0.09235649,97445.0,97444.0,0.76551188]
[1733820824427,8e-05,97445.0,97444.0,0.70948263]
[1733820824730,8e-05,97445.0,97444.0,1.01491644]
[1733820824929,8e-05,97445.0,97444.0,0.70948263]
[1733820825234,8e-05,97445.0,97444.0,1.0149052]
[1733820826033,8e-05,97445.0,97444.0,1.01497847]
[1733820826332,8e-05,97445.0,97444.0,0.45902305]
[1733820826828,8e-05,97445.0,97444.0,0.76444562]
[1733820827233,8e-05,97445.0,97444.0,0.45902305]
[1733820828230,0.20507884,97460.0,97444.0,0.45902305]
[1733820828231,0.09227649,97453.0,97444.0,0.7096552]
[1733820828432,0.12303507,97457.0,97444.0,0.7096552]
[1733820828433,0.12303507,97463.0,97458.0,0.051286]
[1733820828623,0.00013227,97476.0,97458.0,0.051286]
[1733820828624,0.12303507,97464.0,97462.0,0.60510051]
[1733820828830,0.12303507,97466.0,97465.0,0.051282]
[1733820829030,0.00013227,97476.0,97475.0,0.051277]
[1733820829230,0.12303962,97476.0,97475.0,0.051277]
[1733820829432,0.00013227,97476.0,97475.0,0.051277]
[1733820829641,0.00013227,97476.0,97475.0,0.09615178]
[1733820830329,0.00313227,97476.0,97475.0,0.09615178]
[1733820831038,0.00313227,97476.0,97475.0,0.09615029]
[1733820831333,0.00913227,97476.0,97475.0,0.09615029]
[1733820833133,0.00913227,97476.0,97475.0,0.27920809]
[1733820833429,0.00913227,97476.0,97475.0,0.09615029]
[1733820833638,0.00913227,97476.0,97475.0,0.34022736]
[1733820833831,0.00913227,97476.0,97475.0,0.051277]
[1733820834341,0.12290735,97502.0,97493.0,0.051267]
[1733820834530,0.01030317,97501.0,97493.0,0.051267]
[1733820834837,0.01030317,97501.0,97493.0,0.09617498]
[1733820835248,0.1485,97506.0,97493.0,0.051428]
[1733820835545,0.00667,97494.0,97493.0,0.051428]
[1733820836133,0.00667,97494.0,97493.0,0.412228]
[1733820836336,1e-06,97500.0,97499.0,0.051264]
[1733820836642,1e-06,97500.0,97499.0,0.44085198]
[1733820836836,1e-06,97500.0,97499.0,0.88655198]
[1733820837046,0.12290735,97520.0,97519.0,0.051254]
[1733820837336,0.12290735,97520.0,97519.0,0.412094]
[1733820837734,0.12290735,97520.0,97519.0,0.45696198]
[1733820838143,0.003,97520.0,97519.0,0.412094]
[1733820839633,0.002,97520.0,97519.0,0.412094]
[1733820839838,0.002,97520.0,97519.0,0.42215422]
[1733820840035,0.002,97520.0,97519.0,0.4670222]
[1733820840537,9.028e-05,97525.0,97524.0,0.051251]
[1733820840739,9.028e-05,97525.0,97524.0,0.19707174]
[1733820841033,9.028e-05,97525.0,97524.0,0.19711174]
[1733820842636,0.00109028,97525.0,97524.0,0.19711174]
[1733820843242,9.028e-05,97525.0,97524.0,0.19711174]
[1733820843542,0.00109028,97525.0,97524.0,0.19711174]
[1733820844635,0.00109028,97525.0,97524.0,0.00016074]
[1733820850942,0.07429028,97525.0,97524.0,0.00016074]
[1733820851943,0.051254,97518.0,97514.0,0.3608]
[1733820852246,8e-05,97515.0,97514.0,0.3608]
[1733820852642,0.051336,97515.0,97514.0,0.3608]
[1733820853247,0.051336,97515.0,97514.0,0.3618]
[1733820853547,8e-05,97515.0,97514.0,0.001]
[1733820855150,0.36088,97515.0,97514.0,0.005]
[1733820855640,0.36088,97515.0,97514.0,0.004]
[1733820856244,0.36088,97515.0,97514.0,0.001]
[1733820856444,0.36088,97515.0,97514.0,0.004]
[1733820856746,0.051261,97507.0,97502.0,0.051263]
[1733820856947,0.0733,97506.0,97504.0,0.051261]
[1733820857647,0.124561,97506.0,97504.0,0.051261]
[1733820858950,0.124561,97506.0,97498.0,0.3608]
[1733820858951,0.051262,97503.0,97498.0,0.3608]
[1733820859253,0.0733,97506.0,97481.0,0.34448]
[1733820859254,0.051264,97500.0,97499.0,0.04486237]
[1733820859442,0.0733,97506.0,97487.0,0.05127]
[1733820859443,0.0757,97502.0,97487.0,0.05127]
[1733820859748,0.3608,97495.0,97483.0,0.051272]
[1733820859954,0.3608,97495.0,97468.0,0.3608]
[1733820859955,0.3608,97485.0,97484.0,0.04486971]
[1733820860246,0.412072,97485.0,97484.0,0.04486971]
[1733820860453,0.3608,97485.0,97478.0,0.00068]
[1733820860654,0.051274,97480.0,97479.0,0.04487582]
[1733820860842,0.0746,97484.0,97476.0,0.051276]
[1733820861045,0.051276,97477.0,97476.0,0.051276]
[1733820861239,0.051276,97477.0,97476.0,0.04487628]
[1733820861438,0.051276,97477.0,97459.0,0.5065]
[1733820861439,0.051278,97473.0,97470.0,0.09615528]
[1733820861643,0.123479,97472.0,97471.0,0.04487707]
[1733820862354,0.123479,97472.0,97463.0,0.01038316]
[1733820862546,0.123479,97472.0,97466.0,0.04487896]
[1733820862949,0.0722,97472.0,97471.0,0.009]
[1733820863153,0.001,97485.0,97484.0,0.051272]
[1733820863450,0.001,97485.0,97484.0,4e-05]
[1733820863846,0.051271,97486.0,97484.0,4e-05]
[1733820864041,0.0715,97488.0,97484.0,0.051312]
[1733820864352,0.0715,97488.0,97487.0,4e-05]
[1733820865150,0.12277,97488.0,97487.0,4e-05]
[1733820865455,0.0715,97488.0,97487.0,4e-05]
[1733820866458,0.0715,97488.0,97487.0,0.01004]
[1733820868244,0.0715,97488.0,97487.0,0.061311]
[1733820870654,0.0722,97489.0,97487.0,0.061311]
[1733820871252,0.0722,97489.0,97487.0,0.01004]
[1733820871455,0.12347,97489.0,97487.0,0.01004]
[1733820871646,0.12347,97489.0,97488.0,4e-05]
[1733820873055,0.12347,97489.0,97488.0,0.00604]
[1733820873452,0.12347,97489.0,97488.0,0.00904]
[1733820873654,0.12347,97489.0,97488.0,0.002748]
[1733820873851,0.051278,97473.0,97471.0,0.3608]
[1733820874164,8e-05,97472.0,97471.0,0.3608]
[1733820874951,8e-05,97472.0,97470.0,0.051279]
[1733820875252,0.051278,97473.0,97471.0,0.009]
[1733820875253,0.06138872,97473.0,97471.0,0.009]
[1733820875651,0.06238872,97473.0,97472.0,4e-05]
[1733820876151,0.052278,97473.0,97472.0,4e-05]
[1733820876356,0.051278,97473.0,97472.0,4e-05]
[1733820877069,0.0696,97478.0,97474.0,0.051277]
[1733820877362,0.0696,97478.0,97472.0,0.00324561]
[1733820877363,0.0696,97478.0,97476.0,0.051276]
[1733820877555,0.0696,97478.0,97477.0,0.00324561]
[1733820878964,0.0696,97478.0,97477.0,4e-05]
[1733820879354,0.0696,97478.0,97477.0,0.00704]
[1733820880062,0.06160248,97480.0,97477.0,0.00704]
[1733820880266,0.06160248,97480.0,97478.0,0.051275]
[1733820880461,0.06160248,97480.0,97479.0,4e-05]
[1733820881154,0.3608,97486.0,97479.0,4e-05]
[1733820881355,0.3608,97486.0,97484.0,0.051272]
[1733820881556,0.3608,97486.0,97485.0,4e-05]
[1733820882856,0.3608,97486.0,97485.0,0.00304]
[1733820883660,0.3608,97486.0,97485.0,0.04891046]
[1733820885165,0.3608,97486.0,97485.0,0.00404]
[1733820886362,0.3608,97486.0,97485.0,0.04891038]
[1733820886563,0.3608,97486.0,97485.0,0.04891306]
[1733820887160,0.55720735,97486.0,97485.0,0.00404]
[1733820887359,0.7951,97486.0,97485.0,0.00404]
[1733820887570,0.8449554,97486.0,97485.0,0.00404]
[1733820887867,0.9485565,97486.0,97485.0,0.00404]
[1733820888059,0.94855268,97486.0,97485.0,0.00404]
[1733820888263,0.8449548,97486.0,97485.0,0.00404]
[1733820888469,1.02911361,97486.0,97485.0,0.00404]
[1733820888668,0.8449548,97486.0,97485.0,0.00404]
[1733820890057,1.02911361,97486.0,97485.0,0.00404]
[1733820890261,1.02911361,97486.0,97469.0,0.05128]
[1733820890262,0.051278,97473.0,97469.0,0.05128]
[1733820890564,0.051278,97473.0,97470.0,0.04487833]
[1733820890565,0.051279,97471.0,97470.0,0.04487833]
[1733820891672,0.12285097,97472.0,97471.0,0.051279]
[1733820891866,0.12285097,97472.0,97471.0,0.09615733]
[1733820892066,0.12285097,97472.0,97471.0,0.09619733]
[1733820892265,0.051278,97472.0,97471.0,0.09619733]
[1733820892770,0.17412897,97472.0,97471.0,0.09619733]
[1733820892975,0.17412897,97472.0,97471.0,0.10019733]
[1733820893870,0.17412897,97472.0,97471.0,0.055319]
[1733820894375,0.052278,97472.0,97471.0,0.10919698]
[1733820895377,0.17512897,97472.0,97471.0,0.10919698]
[1733820895966,0.052278,97472.0,97471.0,0.10919698]
[1733820897464,0.001,97472.0,97471.0,0.10919698]
[1733820898474,0.001,97472.0,97471.0,0.064319]
[1733820900673,0.001,97472.0,97471.0,0.10919537]
[1733820901580,0.052278,97472.0,97471.0,0.05791637]
[1733820903581,0.052278,97472.0,97471.0,0.01304]
[1733820904577,0.052278,97472.0,97471.0,0.064319]
[1733820905880,0.001,97472.0,97471.0,0.064319]
[1733820906081,0.12386618,97472.0,97471.0,0.064319]
[1733820906280,0.001,97472.0,97471.0,0.064319]
[1733820908581,0.12386724,97472.0,97471.0,0.064319]
[1733820908777,0.001,97472.0,97471.0,0.064319]
[1733820909676,0.001,97472.0,97471.0,0.10919612]
[1733820910485,0.001,97472.0,97471.0,0.35260969]
[1733820910684,0.001,97472.0,97471.0,0.10919612]
[1733820911071,0.001,97472.0,97471.0,0.3528763]
[1733820912677,0.001,97472.0,97471.0,0.10919612]
[1733820912886,0.001,97472.0,97471.0,0.35286123]
[1733820913081,0.001,97472.0,97471.0,0.10919612]
[1733820913386,0.001,97472.0,97471.0,0.11964394]
[1733820913881,0.001,97472.0,97471.0,0.10919612]
[1733820916678,0.001,97472.0,97471.0,0.064319]
[1733820916883,0.001,97472.0,97471.0,0.05791712]
[1733820917983,0.12390325,97472.0,97471.0,0.05791712]
[1733820918488,0.001,97472.0,97471.0,0.05791712]
[1733820920085,0.001,97472.0,97471.0,0.01304]
[1733820924688,0.001,97472.0,97471.0,0.05791921]
[1733820924889,0.001,97472.0,97471.0,0.01304]
[1733820927687,0.001,97472.0,97471.0,0.0579191]
[1733820927988,0.001,97472.0,97471.0,0.01304]
[1733820930091,0.052278,97472.0,97471.0,0.01304]
[1733820932796,0.10213864,97472.0,97471.0,0.01304]
[1733820933199,0.46293864,97472.0,97471.0,0.01304]
[1733820933393,0.46293864,97472.0,97454.0,0.051288]
[1733820933590,0.46293864,97472.0,97452.0,0.18289856]
[1733820933591,0.12288169,97456.0,97452.0,0.18289856]
[1733820933795,8e-05,97455.0,97452.0,0.18289856]
[1733820934299,8e-05,97455.0,97451.0,0.18289856]
[1733820934697,0.051288,97453.0,97452.0,0.051288]
[1733820934899,0.051288,97453.0,97452.0,0.060288]
[1733820935404,0.051288,97453.0,97452.0,0.051288]
[1733820935797,0.052288,97453.0,97452.0,0.059288]
[1733820937101,0.002,97453.0,97452.0,0.1101747]
[1733820937504,0.053288,97453.0,97452.0,0.1101747]
[1733820938108,0.002,97453.0,97452.0,0.1101747]
[1733820938503,0.002,97453.0,97452.0,0.4709747]
[1733820939513,0.002,97453.0,97452.0,0.71483945]
[1733820939712,0.002,97453.0,97452.0,0.4709747]
[1733820939913,0.002,97453.0,97452.0,0.426088]
[1733820940310,0.002,97453.0,97452.0,0.66958009]
[1733820940512,0.002,97453.0,97452.0,0.48127964]
[1733820940703,0.002,97453.0,97452.0,0.4709747]
[1733820942018,0.002,97453.0,97452.0,0.1101747]
[1733820942313,0.002,97453.0,97452.0,0.065288]
[1733820945221,0.002,97453.0,97452.0,0.24171367]
[1733820945426,0.002,97453.0,97452.0,0.05888367]
[1733820945627,0.002,97453.0,97452.0,0.014]
[1733820945819,0.002,97453.0,97452.0,0.05888804]
[1733820954218,0.09416533,97453.0,97452.0,0.05888804]
[1733820954417,0.002,97453.0,97452.0,0.05888804]
[1733820954824,0.09416507,97453.0,97452.0,0.05888804]
[1733820955218,0.002,97453.0,97452.0,0.05888804]
[1733820956232,0.09417701,97453.0,97452.0,0.05888804]
[1733820956432,0.002,97453.0,97452.0,0.05888804]
[1733820956626,0.09417651,97453.0,97452.0,0.05888804]
[1733820956830,0.09417791,97453.0,97452.0,0.05888804]
[1733820957025,0.09417639,97453.0,97452.0,0.05888804]
[1733820957231,0.002,97453.0,97452.0,0.05888804]
[1733820957433,0.09418495,97453.0,97452.0,0.05888804]
[1733820957820,0.09418276,97453.0,97452.0,0.05888804]
[1733820958026,0.002,97453.0,97452.0,0.05888804]
[1733820958231,0.09418276,97453.0,97452.0,0.05888804]
[1733820958526,0.09419278,97453.0,97452.0,0.05888804]
[1733820958730,0.002,97453.0,97452.0,0.05888804]
[1733820958933,0.09419176,97453.0,97452.0,0.05888804]
[1733820959134,0.002,97453.0,97452.0,0.05888804]
[1733820959630,0.002,97453.0,97452.0,0.11017704]
[1733820961424,0.002,97453.0,97452.0,0.29300704]
[1733820961728,0.002,97453.0,97452.0,0.11017704]
[1733820961923,0.053288,97453.0,97452.0,0.11017704]
[1733820962131,0.053288,97453.0,97452.0,0.065289]
[1733820965537,0.053288,97453.0,97452.0,0.11017704]
[1733820965729,0.053288,97453.0,97452.0,0.11338314]
[1733820965925,0.002,97453.0,97452.0,0.11338314]
[1733820966631,0.002,97453.0,97452.0,0.11017704]
[1733820966829,0.002,97453.0,97452.0,0.11338316]
[1733820967232,0.1249736,97453.0,97452.0,0.25135842]
[1733820968338,0.1249736,97453.0,97452.0,0.01720612]
[1733820968339,0.053288,97453.0,97452.0,0.01720612]
[1733820968527,0.053288,97453.0,97452.0,0.0172063]
[1733820968729,0.053288,97453.0,97452.0,0.014]
[1733820969032,0.053288,97453.0,97452.0,0.01720631]
[1733820969033,0.414088,97453.0,97452.0,0.01720631]
[1733820969936,0.414088,97453.0,97452.0,0.0620951]
[1733820970240,0.413088,97453.0,97452.0,0.056095]
[1733820970543,0.412088,97453.0,97452.0,0.054095]
[1733820971040,0.412088,97453.0,97452.0,0.00920631]
[1733820971041,0.051288,97453.0,97452.0,0.00920631]
[1733820971232,0.051288,97453.0,97452.0,0.24335861]
[1733820971433,0.051288,97453.0,97452.0,0.24330371]
[1733820971635,0.051288,97453.0,97452.0,0.06049531]
[1733820972136,0.051288,97453.0,97452.0,0.06049535]
[1733820973039,8e-05,97455.0,97454.0,0.051288]
[1733820973338,8e-05,97455.0,97454.0,0.05453435]
[1733820974342,8e-05,97455.0,97454.0,0.05553435]
[1733820974538,8e-05,97455.0,97454.0,0.05853435]
[1733820977140,0.15368212,97455.0,97454.0,0.05853435]
[1733820977742,0.15368212,97455.0,97454.0,0.10342108]
[1733820978643,0.15368212,97455.0,97454.0,0.10021473]
[1733820978845,0.15368212,97455.0,97454.0,0.1034209]
[1733820980641,8e-05,97455.0,97454.0,0.05853417]
[1733820981046,8e-05,97455.0,97454.0,0.00724617]
[1733820981245,0.20496912,97455.0,97454.0,0.00724617]
[1733820981446,0.10123505,97455.0,97454.0,0.00724617]
[1733820983248,0.051294,97443.0,97442.0,0.18296549]
[1733820983443,0.051294,97443.0,97439.0,0.18296549]
[1733820983444,0.051295,97441.0,97439.0,0.18296549]
[1733820983848,0.3608,97443.0,97439.0,0.18296549]
[1733820983849,0.051295,97440.0,97439.0,0.051296]
[1733820984646,0.17427492,97440.0,97439.0,0.051296]
[1733820984950,0.17427492,97440.0,97439.0,0.10518906]
[1733820985546,0.051295,97440.0,97439.0,0.10518906]
[1733820986350,0.052295,97440.0,97439.0,0.10518906]
[1733820986556,0.17527492,97440.0,97439.0,0.10518906]
[1733820986748,0.17527492,97440.0,97439.0,0.10918906]
[1733820987455,0.052295,97440.0,97439.0,0.10918906]
[1733820988754,0.06259138,97440.0,97439.0,0.10918906]
[1733820988945,0.1855713,97440.0,97439.0,0.10918906]
[1733820989148,0.1855713,97440.0,97439.0,0.064296]
[1733820989548,0.06259138,97440.0,97439.0,0.064296]
[1733820990154,0.1855713,97440.0,97439.0,0.064296]
[1733820990451,0.06259138,97440.0,97439.0,0.064296]
[1733820995354,0.06259138,97440.0,97439.0,0.06750265]
[1733820995355,0.001,97440.0,97439.0,0.06750265]
[1733820995758,0.09316365,97440.0,97439.0,0.06750265]
[1733820996059,0.001,97440.0,97439.0,0.06750265]
[1733820997055,0.001,97440.0,97439.0,0.4731929]
[1733820997254,0.001,97440.0,97439.0,0.7856033]
[1733820997460,0.001,97440.0,97439.0,0.5420929]
[1733820997662,0.001,97440.0,97439.0,0.84692383]
[1733820997862,0.001,97440.0,97439.0,1.10779478]
[1733820998051,0.001,97440.0,97439.0,0.84692383]
[1733820998763,0.001,97440.0,97439.0,0.5420929]
[1733820999155,0.001,97440.0,97439.0,0.8030731]
[1733820999655,0.001,97440.0,97439.0,1.1075983]
[1733821000050,0.001,97440.0,97439.0,0.81343427]
[1733821000254,0.06632852,97450.0,97449.0,0.05129]
[1733821000459,0.12272196,97456.0,97455.0,0.051287]
[1733821000660,0.12272196,97456.0,97455.0,0.0993839]
[1733821001665,0.12272196,97456.0,97455.0,0.1013839]
[1733821001855,0.03055831,97456.0,97455.0,0.05649365]
[1733821002257,0.03055831,97456.0,97455.0,0.05749365]
[1733821002452,0.1226885,97456.0,97455.0,0.05749365]
[1733821002959,0.03055831,97456.0,97455.0,0.05749365]
[1733821003551,0.03055831,97456.0,97455.0,0.054287]
[1733821003757,0.03055831,97456.0,97455.0,0.05749308]
[1733821004471,0.08184531,97456.0,97455.0,0.05749308]
[1733821006259,0.08184531,97456.0,97455.0,0.10237852]
[1733821008161,0.03055831,97456.0,97455.0,0.09917244]
[1733821008567,0.03055831,97456.0,97455.0,0.054287]
[1733821009069,0.03055831,97456.0,97455.0,0.05749313]
[1733821012964,0.03055831,97456.0,97455.0,0.054287]
[1733821013167,0.03055831,97456.0,97455.0,0.05749312]
[1733821013360,0.03055831,97456.0,97455.0,0.054287]
[1733821013668,0.08184531,97456.0,97455.0,0.054287]
[1733821015162,0.20482523,97456.0,97455.0,0.054287]
[1733821015963,0.08184531,97456.0,97455.0,0.054287]
[1733821016661,0.20468226,97456.0,97455.0,0.054287]
[1733821017354,0.20468645,97456.0,97455.0,0.04788645]
[1733821017554,0.08184531,97456.0,97455.0,0.003]
[1733821018072,0.13171393,97456.0,97455.0,0.003]
[1733821018860,0.69171393,97456.0,97455.0,0.003]
[1733821020268,0.69171393,97456.0,97455.0,0.002]
[1733821020461,0.13171393,97456.0,97455.0,0.003]
[1733821020864,0.13571393,97456.0,97455.0,0.001]
[1733821021072,0.13571393,97456.0,97449.0,4e-05]
[1733821021273,0.41209,97450.0,97449.0,4e-05]
[1733821021468,0.46203862,97450.0,97449.0,4e-05]
[1733821023367,0.46403862,97450.0,97449.0,4e-05]
[1733821023871,0.46603862,97450.0,97449.0,4e-05]
[1733821025170,0.46603862,97450.0,97430.0,0.0513]
[1733821025475,0.05138,97431.0,97430.0,0.0513]
[1733821025876,0.05138,97431.0,97430.0,0.09619431]
[1733821026072,0.05138,97431.0,97430.0,0.04489431]
[1733821026575,0.41218,97431.0,97430.0,0.04489431]
[1733821026768,0.41218,97431.0,97430.0,0.003]
[1733821027069,0.56577369,97431.0,97430.0,0.009]
[1733821027577,0.41318,97431.0,97430.0,0.006]
[1733821027769,0.41318,97431.0,97430.0,0.009]
[1733821028164,0.48058,97431.0,97430.0,0.009]
[1733821028469,0.49105419,97431.0,97430.0,0.009]
[1733821028871,0.42365419,97431.0,97430.0,0.009]
[1733821029271,0.51570944,97431.0,97430.0,0.009]
[1733821029467,0.42365419,97431.0,97430.0,0.009]
[1733821029666,0.37235419,97431.0,97430.0,0.009]
[1733821029873,0.00108,97431.0,97430.0,0.0603]
[1733821030079,0.00108,97431.0,97430.0,0.10519441]
[1733821030773,0.00108,97431.0,97430.0,0.0603]
[1733821031479,0.00108,97431.0,97430.0,0.10519245]
[1733821032278,0.051291,97449.0,97447.0,0.051291]
[1733821032478,0.0203894,97448.0,97447.0,0.051291]
[1733821032974,0.09203955,97453.0,97452.0,0.051289]
[1733821033370,0.09203955,97453.0,97444.0,0.01026649]
[1733821033371,0.01036508,97456.0,97455.0,0.051287]
[1733821033770,0.01036508,97456.0,97455.0,0.051327]
[1733821035880,0.01536508,97456.0,97455.0,0.051327]
[1733821036579,0.01836508,97456.0,97455.0,0.051327]
[1733821036780,0.11039925,97456.0,97455.0,0.051327]
[1733821037174,0.01836508,97456.0,97455.0,0.051327]
[1733821038182,0.03859232,97456.0,97455.0,0.051327]
[1733821047003,0.03859232,97456.0,97455.0,4e-05]
[1733821048992,0.16133372,97456.0,97455.0,4e-05]
[1733821051093,0.03859232,97456.0,97455.0,4e-05]
[1733821051290,0.16134579,97456.0,97455.0,0.00324626]
[1733821051600,0.03859232,97456.0,97455.0,0.00324626]
[1733821052795,0.16134579,97456.0,97455.0,0.00324626]
[1733821053000,0.03859232,97456.0,97455.0,0.00324626]
[1733821053897,0.16134795,97456.0,97455.0,4e-05]
[1733821054104,0.16134795,97456.0,97455.0,0.00324633]
[1733821054308,0.03859232,97456.0,97455.0,0.00324633]
[1733821054501,0.16135143,97456.0,97455.0,0.00324633]
[1733821055409,0.16135699,97456.0,97455.0,0.00324633]
[1733821055912,0.03859232,97456.0,97455.0,0.00324633]
[1733821056303,0.16137038,97456.0,97455.0,0.00324633]
[1733821056502,0.03859232,97456.0,97455.0,0.00324633]
[1733821057409,0.16137038,97456.0,97455.0,0.00324633]
[1733821058305,0.03859232,97456.0,97455.0,0.00324633]
[1733821061108,0.03859232,97456.0,97455.0,0.04813275]
[1733821061305,0.19218601,97456.0,97455.0,0.04813275]
[1733821062105,0.19218601,97456.0,97455.0,0.04813258]
[1733821065107,0.19218601,97456.0,97455.0,0.04813259]
[1733821066008,0.24347301,97456.0,97455.0,0.04813259]
[1733821066412,0.24368523,97456.0,97455.0,0.04813259]
[1733821066606,0.13974773,97456.0,97455.0,0.04492642]
[1733821068212,0.13974773,97456.0,97455.0,4e-05]
[1733821075412,0.08987932,97456.0,97455.0,0.18241559]
[1733821075716,0.13974913,97456.0,97455.0,4e-05]
[1733821077021,0.50054913,97456.0,97455.0,4e-05]
[1733821077217,1.21727803,97456.0,97455.0,4e-05]
[1733821077521,1.21727803,97456.0,97433.0,0.412099]
[1733821077522,0.05129,97451.0,97435.0,0.18237559]
[1733821077723,0.051298,97435.0,97434.0,0.18237559]
[1733821077915,0.17434161,97435.0,97434.0,0.22726712]
[1733821078315,0.17434161,97435.0,97434.0,0.04489153]
[1733821079022,0.051298,97435.0,97434.0,0.04489153]
[1733821079611,0.051298,97435.0,97434.0,0.04889153]
[1733821080918,0.051298,97435.0,97434.0,0.006]
[1733821080919,0.17426809,97435.0,97434.0,0.006]
[1733821081422,0.051298,97435.0,97434.0,0.05089673]
[1733821081822,0.06173431,97435.0,97434.0,0.05089673]
[1733821082022,0.1847044,97435.0,97434.0,0.05089673]
[1733821082220,0.06173431,97435.0,97434.0,0.05089673]
[1733821082918,0.06173431,97435.0,97434.0,0.006]
[1733821082919,0.42253431,97435.0,97434.0,0.006]
[1733821083428,0.47241627,97435.0,97434.0,0.006]
[1733821084123,0.051294,97434.0,97412.0,0.18282853]
[1733821084322,0.051294,97434.0,97410.0,0.18282853]
[1733821084323,0.051304,97413.0,97410.0,0.18282853]
[1733821084518,0.051304,97413.0,97405.0,0.35602222]
[1733821084519,8e-05,97413.0,97411.0,0.04490131]
[1733821084716,8e-05,97413.0,97412.0,0.04495473]
[1733821085312,8e-05,97413.0,97412.0,0.05395473]
[1733821085820,8e-05,97413.0,97412.0,0.00505342]
[1733821086725,8e-05,97413.0,97412.0,0.04995817]
[1733821086914,0.01050945,97413.0,97412.0,0.00505342]
[1733821087229,8e-05,97413.0,97412.0,0.00505342]
[1733821087419,0.00108,97413.0,97412.0,0.00505342]
[1733821088022,0.00108,97413.0,97412.0,0.00205342]
[1733821088224,8e-05,97413.0,97412.0,0.00205342]
[1733821091825,0.36088,97413.0,97412.0,0.00205342]
[1733821098133,0.36088,97413.0,97412.0,5.342e-05]
[1733821098326,0.36088,97413.0,97412.0,0.00205342]
[1733821098825,0.381523,97413.0,97412.0,0.00205342]
[1733821100336,0.36088,97413.0,97412.0,0.00205342]
[1733821101424,0.4528085,97413.0,97412.0,0.00205342]
[1733821101630,0.36088,97413.0,97412.0,0.00205342]
[1733821102423,0.36088,97413.0,97412.0,0.00105342]
[1733821104432,0.4834402,97413.0,97412.0,0.00105342]
[1733821105344,0.36088,97413.0,97412.0,0.00105342]
[1733821110835,0.51408025,97413.0,97412.0,0.00105342]
[1733821111042,0.36088,97413.0,97412.0,0.00105342]
[1733821111448,0.41077461,97413.0,97412.0,0.00105342]
[1733821112141,0.59461491,97413.0,97412.0,0.00105342]
[1733821112842,0.41077461,97413.0,97412.0,0.00105342]
[1733821113446,0.59517166,97413.0,97412.0,0.00105342]
[1733821113647,0.41077461,97413.0,97412.0,0.00105342]
[1733821114046,0.36088,97413.0,97412.0,0.00105342]
[1733821115139,0.41077136,97413.0,97412.0,0.00105342]
[1733821116239,0.41077136,97413.0,97412.0,0.05235842]
[1733821116240,0.04997166,97413.0,97412.0,0.05235842]
[1733821116446,8e-05,97413.0,97412.0,0.05235842]
[1733821117650,8e-05,97413.0,97412.0,0.00105342]
[1733821118144,0.36088,97413.0,97412.0,0.00105342]
[1733821118452,0.51458624,97413.0,97412.0,0.00105342]
[1733821118949,0.41077042,97413.0,97412.0,0.00105342]
[1733821119252,0.51460177,97413.0,97412.0,0.00105342]
[1733821119447,0.36088,97413.0,97412.0,0.00105342]
[1733821119840,0.41077012,97413.0,97412.0,0.00105342]
[1733821120149,0.04997012,97413.0,97412.0,0.00105342]
[1733821120447,0.04997012,97413.0,97412.0,0.04595943]
[1733821120649,8e-05,97413.0,97412.0,0.04595943]
[1733821121244,0.15384126,97413.0,97412.0,0.00105342]
[1733821121447,8e-05,97413.0,97412.0,0.00105342]
[1733821121845,0.04997071,97413.0,97412.0,0.00105342]
[1733821123048,8e-05,97413.0,97412.0,0.00105342]
[1733821123349,0.04997151,97413.0,97412.0,0.00105342]
[1733821123844,0.04997108,97413.0,97412.0,0.00105342]
[1733821124446,0.15386655,97413.0,97412.0,0.00105342]
[1733821124642,8e-05,97413.0,97412.0,0.00105342]
[1733821124846,0.04997118,97413.0,97412.0,0.00105342]
[1733821125851,0.02013865,97413.0,97412.0,0.00105342]
[1733821126442,0.07144265,97413.0,97412.0,0.00105342]
[1733821126848,0.2252358,97413.0,97412.0,0.00105342]
[1733821127347,0.22525621,97413.0,97412.0,0.00105342]
[1733821127945,0.22525624,97413.0,97412.0,0.00105342]
[1733821128352,0.2252589,97413.0,97412.0,0.00105342]
[1733821128655,0.07144265,97413.0,97412.0,0.00105342]
[1733821128859,0.12133352,97413.0,97412.0,0.00105342]
[1733821133050,0.12133352,97413.0,97412.0,0.04596079]
[1733821133348,0.07144265,97413.0,97412.0,0.04596079]
[1733821133548,0.07144265,97413.0,97412.0,0.09726579]
[1733821133549,0.02013865,97413.0,97412.0,0.09726579]
[1733821133759,0.02013865,97413.0,97412.0,0.05235842]
[1733821135156,0.07144265,97413.0,97412.0,0.05235842]
[1733821136349,0.07144265,97413.0,97412.0,0.09726416]
[1733821137456,0.07144265,97413.0,97412.0,0.05235842]
[1733821140353,0.07144265,97413.0,97412.0,0.09726416]
[1733821142867,0.07144265,97413.0,97412.0,0.04595916]
[1733821143068,0.21633215,97413.0,97412.0,0.00105342]
[1733821143750,0.4007292,97413.0,97412.0,0.00105342]
[1733821144154,0.21633215,97413.0,97412.0,0.00105342]